bitfinex-derivatives/quotes_ETHF0:USTF0_20251024
["timestamp","ask_amount","ask_price","bid_price","bid_amount"]
[1761265026876,0.8117,3853.1,3853.0,1.25023833]
[1761265027682,0.8117,3853.1,3853.0,2.00873322]
[1761265028679,0.5792,3853.1,3853.0,2.00873322]
[1761265030883,0.5942,3854.0,3853.9,1.24823]
[1761265031087,0.5942,3854.0,3853.9,2.00672489]
[1761265031587,0.5792,3854.4,3854.3,1.24818]
[1761265031788,0.6000501,3855.0,3854.9,1.24811]
[1761265032091,0.6000501,3855.0,3854.9,2.00660489]
[1761265032382,0.9561501,3855.0,3854.9,2.00660489]
[1761265032588,0.5822501,3855.0,3854.9,2.00660489]
[1761265032786,0.5822501,3855.0,3854.9,1.24811]
[1761265035384,0.9533501,3855.0,3854.9,0.91961]
[1761265036282,0.9533501,3855.0,3854.9,1.24811]
[1761265036789,0.0030501,3855.0,3854.9,1.24811]
[1761265037675,0.5822501,3855.0,3854.9,1.24811]
[1761265037881,0.9533501,3855.0,3854.9,0.91961]
[1761265038886,0.4556,3854.4,3854.3,1.24818]
[1761265039084,0.8117,3854.4,3854.3,0.69878]
[1761265039280,0.8117,3854.8,3854.7,1.24812]
[1761265041097,0.3561,3854.7,3854.5,0.46685]
[1761265041284,0.5792,3853.9,3853.8,10.48524]
[1761265042989,0.5792,3853.9,3853.8,1.24824]
[1761265043593,0.8117,3853.9,3853.8,1.24824]
[1761265043991,0.8117,3853.9,3853.8,0.91974]
[1761265044292,0.3561,3853.8,3853.6,0.69886]
[1761265044491,0.8117,3853.7,3853.6,0.69886]
[1761265044789,0.8117,3853.7,3853.6,0.91976]
[1761265044990,0.8117,3853.7,3853.6,1.24826]
[1761265045186,0.5792,3853.7,3853.6,1.24826]
[1761265047595,0.8117,3853.7,3853.6,0.46696]
[1761265047796,0.8117,3853.7,3853.6,0.69236]
[1761265047988,0.1386,3854.0,3853.6,0.69236]
[1761265047989,0.3341,3854.0,3853.9,0.46693]
[1761265048288,0.5958,3854.5,3854.4,0.91867]
[1761265048596,1.1571218,3854.5,3854.4,1.25017]
[1761265048995,1.3824218,3854.5,3854.4,1.25017]
[1761265049686,0.3511,3854.4,3854.1,0.224]
[1761265049886,0.8047,3854.2,3854.1,0.6909]
[1761265050096,0.8047,3854.2,3854.1,0.9061]
[1761265050592,0.8047,3854.2,3854.1,1.2629]
[1761265050990,0.3585,3854.5,3854.4,0.46687]
[1761265051189,0.5963,3854.5,3854.4,1.26287]
[1761265051391,1.1875701,3854.5,3854.4,1.26287]
[1761265051596,1.5386701,3854.5,3854.4,1.26287]
[1761265052597,1.5386701,3854.5,3854.4,0.90607]
[1761265054893,1.5386701,3854.5,3853.6,3.68731745]
[1761265054894,0.8047,3854.4,3854.3,0.46687]
[1761265055096,0.8047,3854.2,3854.1,0.4669]
[1761265055296,1.3959701,3854.2,3854.1,0.4669]
[1761265055499,0.8047,3853.7,3853.6,0.90617]
[1761265056203,0.8047,3853.7,3853.6,1.26297]
[1761265057397,0.4938,3854.0,3853.9,1.26293]
[1761265057696,1.30113493,3854.0,3853.9,1.26293]
[1761265058401,1.53893493,3854.0,3853.9,0.90613]
[1761265058600,0.8047,3853.7,3853.6,0.69097]
[1761265059704,1.39629169,3853.7,3853.6,0.46697]
[1761265060198,0.9474,3853.5,3853.4,0.46698]
[1761265060502,1.53899169,3853.5,3853.4,0.46698]
[1761265061800,1.53899169,3853.5,3853.4,0.69098]
[1761265063196,0.8047,3853.4,3853.3,0.46699]
[1761265063390,1.39629169,3853.4,3853.3,0.46699]
[1761265063595,1.39629169,3853.4,3853.3,0.69099]
[1761265070809,1.39629169,3853.4,3853.3,0.46699]
[1761265073004,0.94269169,3853.4,3853.3,2.02168282]
[1761265073610,1.15849169,3853.4,3853.3,2.02168282]
[1761265074815,1.39629169,3853.4,3853.3,2.02168282]
[1761265075210,0.94269169,3853.4,3853.3,2.02168282]
[1761265075405,0.3511,3853.9,3853.8,0.796]
[1761265075712,1.15812709,3853.9,3853.8,2.02163282]
[1761265076412,0.59122709,3853.9,3853.8,2.02163282]
[1761265077111,1.15812709,3853.9,3853.8,2.02163282]
[1761265078211,1.39592709,3853.9,3853.8,1.66483282]
[1761265078411,1.39592709,3853.9,3853.8,0.46694]
[1761265078717,1.39592709,3853.9,3853.5,0.75869282]
[1761265078718,0.3511,3853.8,3853.5,0.98269282]
[1761265078918,0.8047,3853.6,3853.5,0.69098]
[1761265079119,1.39592709,3853.6,3853.5,0.90618]
[1761265080022,1.39592709,3853.6,3853.5,0.46698]
[1761265080414,0.337,3853.3,3853.2,0.46701]
[1761265080619,0.7763,3853.3,3853.2,0.46701]
[1761265080823,1.36353537,3853.3,3853.2,0.46701]
[1761265081422,1.36353537,3853.3,3853.2,0.68981]
[1761265082216,1.36353537,3853.3,3853.2,0.91251]
[1761265082820,1.36353537,3853.3,3853.2,1.24641]
[1761265083218,1.36353537,3853.3,3853.2,0.91251]
[1761265085224,1.36353537,3853.3,3853.2,0.68981]
[1761265085623,1.36353537,3853.3,3853.1,0.46703]
[1761265085624,0.7763,3853.2,3853.1,0.46703]
[1761265085822,1.36353537,3853.2,3853.1,0.46703]
[1761265086426,1.36353537,3853.2,3853.1,0.68983]
[1761265087025,1.36353537,3853.2,3853.1,0.91253]
[1761265087417,1.36353537,3853.2,3853.1,0.68983]
[1761265087818,1.36353537,3853.2,3853.1,1.24643]
[1761265088624,1.14683537,3853.2,3853.1,1.24643]
[1761265090228,0.58723537,3853.2,3853.1,1.24643]
[1761265090426,0.58723537,3853.2,3853.0,0.00189833]
[1761265090427,1.48911898,3853.7,3853.6,1.24637]
[1761265090623,1.60486471,3853.7,3853.6,0.4455]
[1761265090926,1.60486471,3853.7,3853.6,0.2228]
[1761265091123,1.26786471,3853.7,3853.3,0.5567]
[1761265091332,0.7763,3853.4,3853.3,0.467]
[1761265091530,0.4393,3853.1,3853.0,0.69173833]
[1761265091739,1.36453649,3853.1,3853.0,0.69173833]
[1761265092625,1.36453649,3853.1,3853.0,0.00189833]
[1761265092940,1.60473509,3853.1,3853.0,0.22469833]
[1761265093428,1.60473509,3853.1,3853.0,0.00189833]
[1761265095425,0.5596,3851.8,3851.7,0.9127]
[1761265095631,0.5596,3851.8,3851.7,3.5557]
[1761265096030,0.5596,3851.8,3851.7,3.8896]
[1761265096333,0.56218331,3851.8,3851.7,3.89273925]
[1761265096830,0.56218331,3851.8,3851.7,1.24973925]
[1761265097032,0.56218331,3851.8,3851.7,10.48473925]
[1761265097529,0.56218331,3851.8,3851.7,1.24973925]
[1761265097730,0.33958331,3851.8,3851.7,10.48473925]
[1761265097927,0.00258331,3851.8,3851.7,10.48473925]
[1761265100832,0.00258331,3851.8,3851.7,11.33869583]
[1761265101237,0.00258331,3851.8,3851.7,1.24973925]
[1761265101437,0.00258331,3851.8,3851.7,11.33969583]
[1761265101737,0.33958331,3851.8,3851.7,11.33969583]
[1761265102330,0.5596,3852.5,3852.4,1.24651]
[1761265102536,0.92285011,3852.5,3852.4,2.10046658]
[1761265102730,0.58585011,3852.5,3852.4,2.10046658]
[1761265103037,0.92285016,3852.6,3852.5,1.2465]
[1761265103238,1.36214964,3852.6,3852.5,1.2465]
[1761265103438,1.36399785,3852.6,3852.5,1.2465]
[1761265108538,0.00184821,3852.6,3852.5,1.377]
[1761265110432,0.34464821,3852.6,3852.5,1.377]
[1761265111241,0.78294821,3852.6,3852.5,0.9126]
[1761265111446,0.78294821,3852.6,3852.5,10.1486]
[1761265112134,0.78294821,3852.6,3852.5,10.4748]
[1761265113442,0.78294821,3852.6,3852.5,10.1486]
[1761265113642,0.78294821,3852.6,3852.5,10.4748]
[1761265114640,0.78294821,3852.6,3852.5,10.1476]
[1761265115041,0.78294821,3852.6,3852.5,0.9126]
[1761265115830,1.36944935,3852.6,3852.5,0.4671]
[1761265116446,1.36944935,3852.6,3852.5,0.6843]
[1761265117643,1.36944935,3852.6,3852.5,1.243]
[1761265117843,1.36944935,3852.6,3852.5,0.9168]
[1761265118342,1.36944935,3852.6,3852.5,1.243]
[1761265118640,0.93112764,3853.3,3853.2,0.7759]
[1761265118840,0.24220803,3853.3,3853.2,1.24291]
[1761265119042,0.80790803,3853.3,3853.2,1.24291]
[1761265119545,0.24521307,3853.3,3853.2,1.24291]
[1761265120047,0.2452586,3853.3,3853.2,1.24291]
[1761265120241,0.8109586,3853.3,3853.2,1.24291]
[1761265120742,1.0263586,3853.3,3853.2,9.70101]
[1761265121147,1.0263586,3853.3,3853.2,9.91821]
[1761265124648,0.6835586,3853.3,3853.1,9.70001]
[1761265124861,1.02338986,3853.2,3853.1,9.70001]
[1761265125148,0.3428,3853.2,3853.1,10.47591]
[1761265126754,0.00300504,3853.3,3853.2,1.24291]
[1761265134655,0.34580504,3853.3,3853.2,1.24291]
[1761265135855,0.00300504,3853.3,3853.2,1.24291]
[1761265136055,0.34580504,3853.3,3853.2,1.24291]
[1761265137260,0.56870504,3853.3,3853.2,1.24291]
[1761265137452,0.56870504,3853.3,3853.2,10.47291]
[1761265138162,0.56870504,3853.3,3853.2,1.24291]
[1761265138350,0.56870504,3853.3,3853.2,10.47291]
[1761265138549,0.78410504,3853.3,3853.2,10.47291]
[1761265139451,0.00300504,3853.3,3853.2,10.47291]
[1761265139857,0.00300504,3853.3,3853.2,1.24291]
[1761265140154,0.00300504,3853.3,3853.2,10.47191]
[1761265140958,0.3542,3854.2,3854.1,0.4669]
[1761265141153,0.58348741,3854.2,3854.1,11.33295658]
[1761265141353,0.3542,3854.6,3854.1,11.33295658]
[1761265141354,0.93112764,3855.2,3855.1,0.56]
[1761265141556,0.5735,3855.5,3855.4,1.24985]
[1761265141759,0.81563797,3855.5,3855.4,1.24985]
[1761265141953,0.81563797,3855.5,3855.4,10.47885]
[1761265142259,1.18699161,3855.5,3855.4,10.48092319]
[1761265143259,0.94485364,3855.5,3855.4,10.48092319]
[1761265143659,1.15042764,3856.2,3856.1,0.46666]
[1761265143860,0.2193,3856.5,3856.4,1.24973]
[1761265144056,0.93112764,3857.3,3856.7,0.46659]
[1761265144268,0.4521,3856.9,3856.8,0.7831]
[1761265144768,0.2193,3856.5,3856.4,0.7831]
[1761265145064,0.22231701,3856.9,3856.8,0.2231]
[1761265145264,0.45511701,3856.9,3856.8,0.7831]
[1761265145651,0.45511701,3856.9,3856.8,1.63705658]
[1761265145652,0.00301701,3856.9,3856.8,1.63705658]
[1761265146457,0.4521,3856.7,3856.6,0.6897]
[1761265146661,0.8063,3856.7,3856.6,0.2231]
[1761265146959,0.35721701,3856.9,3856.7,0.3425]
[1761265147164,0.57651701,3856.9,3856.8,0.7831]
[1761265147363,8.94112764,3858.3,3857.7,0.46647]
[1761265147562,0.1367,3859.0,3858.5,0.5814]
[1761265147563,0.93112764,3858.8,3858.5,0.5814]
[1761265147857,1.39669146,3859.0,3858.9,0.7831]
[1761265147858,0.5735,3859.0,3858.9,0.7831]
[1761265148565,0.5735,3859.2,3859.1,0.7831]
[1761265148757,0.00229231,3859.2,3859.1,0.44258987]
[1761265149265,0.00229231,3859.2,3859.1,0.78508987]
[1761265152963,0.00229231,3859.2,3859.1,10.03608987]
[1761265155670,0.00229231,3859.2,3859.1,0.78508987]
[1761265155871,0.00229231,3859.2,3859.1,10.03108987]
[1761265158472,0.00229231,3859.2,3859.1,10.02508987]
[1761265160276,0.00229231,3859.2,3859.1,0.78508987]
[1761265160467,0.00229231,3859.2,3859.1,10.02208987]
[1761265161172,0.5735,3860.4,3860.3,0.7831]
[1761265161371,0.5735,3860.4,3860.0,0.1408]
[1761265161372,0.2193,3860.9,3860.4,0.3425]
[1761265161677,0.4521,3860.9,3860.8,0.7831]
[1761265161975,0.8063,3860.9,3860.8,0.7831]
[1761265162163,0.80894371,3860.9,3860.8,0.7831]
[1761265163574,0.00264371,3860.9,3860.8,0.7831]
[1761265164274,0.3542,3862.2,3862.1,0.2175]
[1761265164469,0.8063,3862.2,3862.1,0.7831]
[1761265165166,0.3542,3862.4,3862.2,0.3425]
[1761265165371,0.80900263,3862.4,3862.3,0.7831]
[1761265166271,0.3542,3862.3,3862.1,0.22579683]
[1761265166471,0.8063,3862.2,3862.1,0.44329683]
[1761265166672,0.8063,3862.2,3862.1,0.78579683]
[1761265167269,0.00270263,3862.4,3862.3,0.7961]
[1761265167482,0.1361,3865.0,3863.5,0.6059]
[1761265167483,0.3396,3864.6,3863.5,0.6059]
[1761265167680,0.3396,3865.3,3864.0,0.1366]
[1761265167881,0.3396,3864.9,3864.1,0.3268]
[1761265168077,0.3396,3864.9,3864.0,0.1366]
[1761265168078,0.3396,3864.9,3863.6,0.3268]
[1761265168473,0.34193073,3864.9,3863.3,0.3268]
[1761265169074,0.34193073,3864.9,3860.3,14.8984529]
[1761265169075,0.3502,3863.3,3862.2,0.3349]
[1761265169372,0.3502,3862.4,3861.7,0.3349]
[1761265169781,0.3502,3862.4,3861.3,0.3349]
[1761265170175,0.3502,3862.4,3861.6,0.3349]
[1761265170779,0.3502,3862.9,3862.2,0.3349]
[1761265172179,0.1386,3863.0,3861.5,2.65525716]
[1761265172180,0.1386,3862.5,3861.7,0.3349]
[1761265172480,0.1386,3862.5,3861.4,0.3349]
[1761265172671,0.1386,3862.5,3861.7,0.3349]
[1761265172979,0.1386,3862.5,3861.5,0.1366]
[1761265173176,0.1386,3862.5,3861.9,0.3349]
[1761265174177,0.3502,3862.4,3861.9,0.3349]
[1761265174382,0.1386,3863.0,3862.1,0.33759683]
[1761265174383,0.3502,3862.8,3862.1,0.33759683]
[1761265176575,0.23,3862.2,3862.1,0.55279683]
[1761265176778,0.5802,3862.2,3862.1,0.76989683]
[1761265176983,0.3502,3862.7,3862.2,0.3349]
[1761265177189,0.4587,3862.7,3862.6,0.2152]
[1761265177685,0.8089,3862.7,3862.6,0.2152]
[1761265178492,0.8089,3862.7,3862.6,0.7672]
[1761265178682,0.23,3862.7,3862.6,0.7672]
[1761265179677,0.5802,3862.7,3862.6,0.7672]
[1761265180484,0.3502,3862.6,3862.2,0.5501]
[1761265180689,0.8089,3862.3,3862.2,0.7672]
[1761265180891,0.8089,3862.2,3862.1,0.00269683]
[1761265181877,0.8089,3862.2,3862.1,0.43499683]
[1761265182077,0.8089,3862.2,3862.1,0.76989683]
[1761265183391,0.5802,3862.2,3862.1,0.76989683]
[1761265184292,0.8089,3862.2,3862.1,0.76989683]
[1761265184690,0.8089,3862.2,3862.1,0.43499683]
[1761265185188,0.8089,3862.2,3862.1,0.21789683]
[1761265185488,0.8089,3862.2,3862.1,0.00269683]
[1761265186389,0.8089,3862.2,3862.1,0.21789683]
[1761265186590,0.5802,3862.2,3862.1,0.76989683]
[1761265187689,0.23,3862.2,3862.1,0.76989683]
[1761265188590,0.5802,3862.2,3862.1,0.76989683]
[1761265188788,0.8089,3862.2,3862.1,0.76989683]
[1761265189583,0.8089,3862.2,3862.1,0.21789683]
[1761265189883,1.02790159,3862.2,3862.1,0.00269683]
[1761265190384,1.02790159,3862.2,3862.1,0.21789683]
[1761265190590,1.02790159,3862.2,3862.1,0.76989683]
[1761265191480,1.02790159,3862.2,3862.1,0.21789683]
[1761265191686,1.02790159,3862.2,3862.1,0.76989683]
[1761265192286,1.95902923,3862.2,3862.1,0.76989683]
[1761265192493,1.02790159,3862.2,3862.1,0.76989683]
[1761265192789,1.15012923,3862.2,3862.1,0.76989683]
[1761265192990,0.21900159,3862.2,3862.1,1.23583683]
[1761265193294,0.8089,3862.7,3862.6,0.7672]
[1761265193494,1.95760424,3862.7,3862.6,0.7672]
[1761265193688,1.02854447,3862.7,3862.6,0.7672]
[1761265193887,1.02854447,3862.7,3862.6,1.23308]
[1761265194296,0.44964447,3862.7,3862.6,1.23308]
[1761265194501,1.02854447,3862.7,3862.6,0.7672]
[1761265194789,1.95760424,3862.7,3862.6,0.7672]
[1761265195394,0.21964447,3862.7,3862.6,1.23308]
[1761265198293,0.92905977,3863.1,3863.0,0.46583]
[1761265198490,1.14886739,3863.1,3863.0,1.36963]
[1761265198991,1.70156739,3863.1,3863.0,0.9038]
[1761265199195,1.93626739,3863.1,3863.0,0.7672]
[1761265200295,1.93626739,3863.1,3863.0,1.23303]
[1761265200591,1.00720762,3863.1,3863.0,1.23303]
[1761265200796,0.7745,3862.8,3862.7,0.5664]
[1761265201097,0.7745,3862.8,3862.4,0.2204]
[1761265201098,0.9075,3862.5,3862.4,0.2204]
[1761265201290,1.12730762,3862.5,3862.4,0.2204]
[1761265201487,0.3227,3862.8,3862.5,0.46589]
[1761265201685,0.7745,3862.8,3862.7,0.7853]
[1761265201988,0.21981053,3862.8,3862.7,1.25117]
[1761265202385,0.7745,3863.0,3862.9,1.25114]
[1761265202600,0.99427624,3863.0,3862.9,1.25114]
[1761265203490,0.43687624,3863.0,3862.9,1.25114]
[1761265203892,0.99427624,3863.0,3862.9,1.25114]
[1761265204196,0.7745,3862.9,3862.8,0.68625]
[1761265204590,0.99427539,3862.9,3862.8,0.68625]
[1761265204990,0.7745,3862.9,3862.8,1.25115]
[1761265205189,0.7745,3862.9,3862.8,0.4393]
[1761265205401,0.5574,3862.8,3862.7,9.251]
[1761265205598,0.9075,3862.5,3862.4,1.25119]
[1761265205791,0.3227,3862.4,3861.9,4.7618329]
[1761265205993,0.4518,3861.4,3861.2,0.87557141]
[1761265206191,0.133,3861.5,3861.2,0.87557141]
[1761265206192,0.7745,3861.3,3861.2,1.25135]
[1761265206599,0.5398,3861.5,3861.4,0.7853]
[1761265206902,0.5398,3861.5,3861.4,1.25132]
[1761265207195,0.54315379,3861.5,3861.4,0.78833054]
[1761265207395,0.91085379,3861.5,3861.4,0.22343054]
[1761265207590,0.91085379,3861.5,3861.4,0.00303054]
[1761265208298,0.91085379,3861.5,3861.4,0.22343054]
[1761265208991,0.91085379,3861.5,3861.4,1.25435054]
[1761265208992,0.00335379,3861.5,3861.4,1.25435054]
[1761265209294,0.54315379,3861.5,3861.4,1.25435054]
[1761265209698,0.77785379,3861.5,3861.4,0.78833054]
[1761265209897,0.77785379,3861.5,3861.4,0.22343054]
[1761265209898,0.91085379,3861.5,3861.4,0.22343054]
[1761265210094,0.91085379,3861.5,3861.4,0.78833054]
[1761265210291,0.91085379,3861.5,3861.4,1.25435054]
[1761265210691,0.77785379,3861.5,3861.4,1.25435054]
[1761265210887,0.91085379,3861.5,3861.4,0.44233054]
[1761265211094,0.91085379,3861.5,3861.4,0.00303054]
[1761265212602,1.1324,3861.5,3861.4,0.00303054]
[1761265213392,1.70902509,3861.5,3861.4,0.00303054]
[1761265213793,0.3227,3861.4,3860.7,1.0325]
[1761265213999,0.7745,3860.8,3860.7,0.5664]
[1761265214200,0.13635379,3861.5,3860.7,0.7853]
[1761265214400,0.2171,3860.8,3860.7,1.2514]
[1761265214600,0.7745,3860.8,3860.7,1.2514]
[1761265214900,0.7745,3860.8,3860.7,1.25368947]
[1761265215406,0.7745,3860.8,3860.7,0.00228947]
[1761265215800,0.7745,3860.8,3860.7,0.78758947]
[1761265216001,0.5398,3861.4,3861.3,0.7853]
[1761265216197,1.11607801,3861.4,3861.3,0.7853]
[1761265216502,1.35077801,3861.4,3861.3,1.25133]
[1761265216804,0.00335379,3861.5,3861.4,1.25132]
[1761265218598,0.00335379,3861.5,3860.7,0.00228947]
[1761265218599,0.7745,3860.8,3860.7,0.00228947]
[1761265222903,0.7745,3860.8,3860.7,0.78758947]
[1761265223504,0.7745,3860.8,3860.7,1.25369947]
[1761265223900,0.5398,3860.8,3860.7,1.25369947]
[1761265224104,0.7745,3861.2,3861.1,0.2204]
[1761265224407,1.3548589,3861.2,3861.1,0.68646]
[1761265224607,0.3227,3861.1,3860.8,0.2204]
[1761265224806,0.7745,3860.9,3860.8,0.2204]
[1761265226607,0.7745,3860.9,3860.8,0.68649]
[1761265227109,0.7745,3860.9,3860.8,0.2204]
[1761265229213,0.7928,3860.8,3860.7,0.00228947]
[1761265229406,0.7928,3860.8,3860.7,0.79758947]
[1761265229609,0.7928,3860.8,3860.7,1.26369947]
[1761265229912,0.5548,3860.8,3860.7,1.26369947]
[1761265230811,0.7928,3860.8,3860.7,1.26369947]
[1761265231012,0.3262,3861.2,3860.9,0.46608]
[1761265231209,0.23195379,3861.5,3861.4,1.26132]
[1761265231411,1.38801618,3861.5,3861.4,1.26132]
[1761265232008,1.3771779,3861.5,3861.4,0.7953]
[1761265232213,1.62616229,3861.5,3861.4,1.26132]
[1761265232610,0.5548,3862.3,3862.1,0.3424]
[1761265232812,0.7928,3862.3,3862.2,0.4529]
[1761265233015,1.62289284,3862.3,3862.2,0.4529]
[1761265233719,0.6095,3863.0,3862.9,0.2359]
[1761265233914,1.44232153,3863.0,3862.9,0.2359]
[1761265234414,1.76852153,3863.0,3862.9,0.2359]
[1761265235008,1.76852153,3863.0,3862.9,0.5783]
[1761265235209,1.62562153,3863.0,3862.9,0.7953]
[1761265236212,1.37661617,3863.0,3862.9,0.7953]
[1761265237113,1.51951617,3863.0,3862.9,0.4529]
[1761265237919,1.51951617,3863.0,3862.9,0.7953]
[1761265238111,0.93818782,3863.0,3862.9,0.7953]
[1761265238311,0.79528782,3863.0,3862.9,0.7953]
[1761265239214,0.00248782,3863.0,3862.9,0.7953]
[1761265239722,0.00248782,3863.0,3862.9,5.7953]
[1761265240122,0.3262,3863.9,3862.9,5.7953]
[1761265240123,0.7928,3863.9,3863.8,0.2359]
[1761265240313,1.39288012,3863.9,3863.8,0.7953]
[1761265240511,0.92974164,3864.9,3864.5,0.4529]
[1761265240808,1.1344279,3864.8,3864.7,0.7953]
[1761265241022,0.58291091,3864.8,3864.7,0.79819755]
[1761265241217,0.00328301,3864.8,3864.7,0.79819755]
[1761265241425,0.79608301,3864.8,3864.7,0.23879755]
[1761265241722,0.79608301,3864.8,3864.7,0.00289755]
[1761265242109,0.79608301,3864.8,3864.7,0.23879755]
[1761265242314,0.55808301,3864.8,3864.7,1.26381755]
[1761265242520,0.79608301,3864.8,3864.7,0.00289755]
[1761265243015,0.3262,3863.7,3863.1,0.3424]
[1761265243222,0.5548,3863.2,3863.1,0.7953]
[1761265244022,0.1429,3864.0,3863.1,0.92092931]
[1761265244023,0.3262,3863.6,3863.1,0.92092931]
[1761265244215,0.7928,3863.3,3863.2,0.2359]
[1761265244415,0.7928,3863.3,3863.2,0.7953]
[1761265245019,0.7928,3863.3,3863.2,0.4529]
[1761265245323,0.7928,3863.2,3863.1,0.00221931]
[1761265247520,0.3262,3862.9,3862.1,0.46593]
[1761265247915,0.3262,3862.9,3861.8,0.46597]
[1761265248224,0.3262,3862.9,3861.6,8.035]
[1761265248423,0.7928,3861.7,3861.6,0.23844354]
[1761265248723,0.3262,3861.9,3860.5,1.2968]
[1761265249028,0.3262,3861.9,3861.4,0.46601]
[1761265249409,0.3262,3861.9,3861.5,0.466]
[1761265249615,0.32833191,3861.9,3861.5,0.46823114]
[1761265250922,0.32833191,3861.9,3861.6,0.466]
[1761265251324,0.32833191,3861.9,3861.7,0.46598]
[1761265251516,0.32833191,3861.9,3861.7,0.71598]
[1761265251712,0.32833191,3861.9,3861.8,0.7029]
[1761265251920,0.79493191,3861.9,3861.8,0.4529]
[1761265252126,0.7928,3861.6,3861.5,0.00223114]
[1761265252523,0.3262,3861.6,3861.5,0.45513114]
[1761265252922,0.3262,3861.6,3861.5,0.70513114]
[1761265253125,0.3262,3861.8,3861.7,0.4529]
[1761265253522,0.3262,3861.8,3861.7,0.91888]
[1761265253826,0.3262,3861.8,3861.7,1.16888]
[1761265254728,0.3262,3861.8,3861.7,0.91888]
[1761265255228,0.3262,3861.8,3861.7,1.16888]
[1761265255417,0.3262,3861.8,3861.5,0.00223114]
[1761265255418,0.00213191,3861.9,3861.8,0.95187]
[1761265255618,0.00213191,3861.9,3861.8,1.16887]
[1761265257530,0.00213191,3861.9,3861.8,10.01687]
[1761265257923,0.00213191,3861.9,3861.8,6.16887]
[1761265258622,0.00213191,3861.9,3861.8,10.49487]
[1761265259836,0.00213191,3861.9,3861.8,15.49487]
[1761265260635,0.57993191,3861.9,3861.8,10.24387]
[1761265260928,0.35113191,3861.9,3861.8,10.49357]
[1761265261128,0.35113191,3861.9,3861.8,1.16857]
[1761265262529,0.57993191,3861.9,3861.8,10.48757]
[1761265264526,0.57993191,3861.9,3861.8,10.23787]
[1761265265020,0.57993191,3861.9,3861.5,0.00223114]
[1761265265021,0.349,3861.8,3861.5,0.24033114]
[1761265265330,0.00213191,3861.9,3861.8,0.91907]
[1761265265631,0.00213191,3861.9,3861.8,1.16877]
[1761265266026,0.35113191,3861.9,3861.8,1.16877]
[1761265266426,0.57993191,3861.9,3861.8,1.16877]
[1761265266824,0.81773191,3861.9,3861.8,0.4531]
[1761265267129,0.81773191,3861.9,3861.8,0.70407]
[1761265267324,0.81773191,3861.9,3861.8,0.91907]
[1761265267923,0.81773191,3861.9,3861.8,0.46597]
[1761265270230,0.349,3861.8,3861.5,0.00223114]
[1761265270426,0.8156,3861.6,3861.5,0.46824114]
[1761265271228,0.8156,3861.6,3861.3,9.305]
[1761265271229,5.8156,3861.6,3860.5,0.2497]
[1761265271431,0.1375,3860.0,3859.6,0.2381]
[1761265271733,0.8156,3859.7,3859.6,0.70434]
[1761265272133,0.8156,3859.7,3859.6,0.91934]
[1761265272438,0.8156,3859.7,3859.6,0.92231699]
[1761265273531,0.8156,3859.7,3859.6,0.46921699]
[1761265273737,0.8156,3859.7,3859.6,0.70731699]
[1761265274037,0.8156,3859.7,3859.6,0.92231699]
[1761265274236,0.8156,3859.7,3859.6,0.24107699]
[1761265274739,0.8156,3859.7,3859.6,0.45607699]
[1761265276138,0.5778,3859.7,3859.6,0.45607699]
[1761265276338,0.5778,3859.7,3859.6,0.70577699]
[1761265278535,0.8156,3859.7,3859.6,0.70731699]
[1761265280443,0.8156,3859.7,3859.6,0.92231699]
[1761265281737,0.8156,3859.7,3859.6,0.70731699]
[1761265282633,0.8156,3859.7,3859.6,0.92231699]
[1761265285940,0.8156,3859.7,3859.6,0.00297699]
[1761265286136,0.8156,3859.7,3859.6,0.46921699]
[1761265286640,0.6041,3860.0,3859.9,0.9193]
[1761265287037,0.9347,3860.0,3859.9,0.9193]
[1761265291543,0.9347,3860.0,3859.9,0.7043]
[1761265292343,0.9347,3860.0,3859.9,0.9203]
[1761265292544,0.6969,3860.0,3859.9,1.1695]
[1761265293044,0.3306,3860.0,3859.9,1.1695]
[1761265293232,0.5984,3860.5,3860.4,0.69694]
[1761265293431,1.43367025,3860.5,3860.4,0.91294]
[1761265293647,0.9489,3860.5,3860.4,0.91294]
[1761265294141,0.3505,3860.5,3860.4,1.16214]
[1761265294641,0.5984,3861.0,3860.9,0.91288]
[1761265294846,0.5984,3861.5,3861.4,0.4468]
[1761265295050,1.43389024,3861.5,3860.9,0.2492]
[1761265295245,0.8114,3861.3,3861.2,0.2308]
[1761265295541,1.39373141,3861.3,3861.2,0.69683]
[1761265296045,1.39373141,3861.3,3861.2,0.69685]
[1761265296247,1.64724636,3861.3,3861.2,0.69685]
[1761265296450,1.64724636,3861.3,3860.9,0.2308]
[1761265296451,0.9466,3861.0,3860.9,0.2308]
[1761265296856,0.9466,3861.0,3860.9,0.69688]
[1761265297039,0.9466,3861.0,3860.9,0.2308]
[1761265297241,0.9466,3861.0,3860.9,9.73908]
[1761265297443,0.9466,3861.0,3860.9,0.46608]
[1761265297944,0.9466,3861.0,3860.9,0.69688]
[1761265299354,1.53026499,3861.0,3860.9,0.69688]
[1761265300050,0.3505,3860.9,3860.8,9.268]
[1761265300252,1.39546167,3860.9,3860.8,9.4988]
[1761265300455,1.39546167,3860.9,3860.6,4.31411]
[1761265300456,0.3505,3860.7,3860.6,4.31411]
[1761265300652,0.3505,3860.7,3859.9,0.2492]
[1761265300653,0.8114,3860.2,3860.1,4.2948]
[1761265300952,0.5871,3860.2,3860.1,14.27918]
[1761265302653,0.5871,3860.2,3860.1,14.27818]
[1761265303248,0.3505,3860.2,3860.1,14.27818]
[1761265304756,0.5871,3860.2,3860.1,14.27818]
[1761265305058,0.8114,3860.2,3860.1,9.72818]
[1761265305260,0.8114,3860.2,3860.1,9.95898]
[1761265307050,0.8114,3859.8,3859.7,4.54503]
[1761265307252,0.8114,3859.8,3859.7,10.17303]
[1761265308255,0.5871,3859.8,3859.7,10.42223]
[1761265308456,0.5871,3859.8,3859.7,10.17303]
[1761265309457,0.5871,3859.8,3859.7,9.72623]
[1761265309458,0.8114,3859.8,3859.7,9.72623]
[1761265309957,0.8114,3859.8,3859.7,10.17303]
[1761265311961,0.5961,3860.5,3860.4,0.91294]
[1761265312260,0.5961,3860.5,3860.4,0.4468]